bitfinex/quotes_ETHUSD_20250404
["timestamp","ask_amount","ask_price","bid_price","bid_amount"]
[1743759794686,0.11449695,1829.9,1829.8,5.46507]
[1743759797098,0.3863,1829.8,1829.6,5.46563]
[1743759797293,3.0,1829.7,1829.6,5.46563]
[1743759797482,3.11578428,1829.7,1829.6,5.46563]
[1743759797882,0.11578428,1829.7,1829.6,5.46563]
[1743759799164,3.40500565,1829.9,1829.8,5.46507]
[1743759799490,3.99297677,1829.9,1829.8,5.46507]
[1743759799699,3.99297677,1829.9,1829.7,5.46524]
[1743759800828,3.99297677,1829.9,1829.7,10.93049]
[1743759800993,3.99297677,1829.9,1829.7,10.9305]
[1743759801322,3.99297677,1829.9,1829.7,5.46524]
[1743759801526,3.99297677,1829.9,1829.7,5.46522]
[1743759801728,3.00001,1829.9,1829.8,5.46507]
[1743759802820,5.8839898,1829.9,1829.8,5.46507]
[1743759803625,5.8839898,1829.9,1829.7,10.93046]
[1743759803806,3.4092842,1829.9,1829.7,10.93046]
[1743759804015,3.4092842,1829.9,1829.8,5.46507]
[1743759804511,3.00001,1829.9,1829.8,5.46507]
[1743759805024,1e-05,1829.9,1829.8,5.46507]
[1743759805821,1e-05,1829.9,1829.8,6.71103397]
[1743759806223,0.11400249,1829.9,1829.8,7.633489]
[1743759806526,1e-05,1829.9,1829.8,7.633489]
[1743759806720,0.11400249,1829.9,1829.8,7.633489]
[1743759807024,0.11419396,1829.9,1829.8,7.633489]
[1743759807195,1e-05,1829.9,1829.8,7.633489]
[1743759807396,0.1143854,1829.9,1829.8,7.633489]
[1743759810326,0.1143854,1829.9,1829.8,6.44217]
[1743759810502,0.1143854,1829.9,1829.8,5.46507]
[1743759812236,0.1143854,1829.9,1829.8,5.51971359]
[1743759813435,0.1143854,1829.9,1829.8,5.46507]
[1743759814036,0.1143854,1829.9,1829.8,5.51971357]
[1743759814603,0.1143854,1829.9,1829.8,6.66249336]
[1743759815303,0.1143854,1829.9,1829.8,6.71713693]
[1743759816198,0.1143854,1829.9,1829.8,6.66249336]
[1743759816399,0.1143854,1829.9,1829.8,5.46507]
[1743759816603,0.1143854,1829.9,1829.8,5.51971356]
[1743759816830,0.1143854,1829.9,1829.8,5.46507]
[1743759818033,0.5006854,1829.9,1829.7,10.93049]
[1743759818546,2.975391,1829.9,1829.7,10.93049]
[1743759818716,2.975391,1829.9,1829.7,5.46522]
[1743759819029,2.975391,1829.9,1829.7,10.93046]
[1743759819435,3.38410118,1829.9,1829.8,5.46507]
[1743759823033,3.38410118,1829.9,1829.7,5.46522]
[1743759823209,3.0,1829.8,1829.6,5.46558]
[1743759823411,0.11196541,1829.7,1829.6,10.93112]
[1743759828255,0.11196541,1829.7,1829.6,5.46554]
[1743759832833,0.11196541,1829.7,1829.6,6.49659105]
[1743759833040,1e-05,1829.9,1829.8,5.46507]
[1743759835753,2.4747156,1829.9,1829.7,5.46525]
[1743759835956,3.0,1829.8,1829.6,10.93128]
[1743759836129,3.0,1829.8,1829.6,10.93121]
[1743759836330,0.1116869,1829.7,1829.6,10.93121]
[1743759838041,2.9716925,1829.7,1829.6,5.46567]
[1743759839760,2.5863925,1829.7,1829.6,5.46567]
[1743759842377,0.1116869,1829.7,1829.6,5.46567]
[1743759844874,5.88548979,1829.9,1829.6,10.93134]
[1743759845077,0.11131567,1829.7,1829.6,10.93134]
[1743759845247,5.88548979,1829.9,1829.6,10.93134]
[1743759845437,0.11189163,1829.8,1829.6,5.46567]
[1743759845643,11.35030979,1829.9,1829.6,5.46567]
[1743759845873,0.11201629,1829.8,1829.6,5.46567]
[1743759846278,11.35030979,1829.9,1829.6,5.46567]
[1743759846455,0.11131567,1829.7,1829.6,5.46567]
[1743759846770,11.35030979,1829.9,1829.6,5.46567]
[1743759846970,0.11131567,1829.7,1829.6,5.46567]
[1743759847139,11.35030979,1829.9,1829.6,5.46567]
[1743759847343,0.11131567,1829.7,1829.6,5.46567]
[1743759847544,11.35030979,1829.9,1829.6,5.46567]
[1743759847864,1.13503098,1829.8,1829.6,5.46567]
[1743759848063,1.24692261,1829.8,1829.6,5.46567]
[1743759849539,0.11189163,1829.8,1829.6,5.46567]
[1743759849873,11.35030979,1829.9,1829.6,5.46567]
[1743759850078,0.11131567,1829.7,1829.6,5.46567]
[1743759850370,11.35030979,1829.9,1829.6,5.46567]
[1743759850572,0.11131567,1829.7,1829.5,10.93178]
[1743759850772,16.81523979,1829.9,1829.5,10.93178]
[1743759850943,0.11073965,1829.6,1829.5,10.93178]
[1743759851144,16.81523979,1829.9,1829.5,10.93178]
[1743759851346,0.11073965,1829.6,1829.5,10.93178]
[1743759851880,11.35030979,1829.9,1829.5,10.93178]
[1743759852067,0.11073965,1829.6,1829.5,10.93178]
[1743759852269,16.81522979,1829.9,1829.5,10.93178]
[1743759852470,0.11073965,1829.6,1829.5,10.93178]
[1743759852670,11.35030979,1829.9,1829.6,5.46564]
[1743759853180,16.81522979,1829.9,1829.6,5.46564]
[1743759854181,11.35030979,1829.9,1829.6,5.46564]
[1743759854678,16.81523979,1829.9,1829.6,5.46564]
[1743759854857,16.81523979,1829.9,1829.6,13.46564]
[1743759855058,1.68152398,1829.8,1829.6,13.46564]
[1743759857687,6.09523666,1829.8,1829.6,13.46564]
[1743759858892,6.09523666,1829.8,1829.6,8.0]
[1743759859850,8.70787,1829.7,1829.6,8.0]
[1743759860259,10.12158268,1829.7,1829.6,8.0]
[1743759860489,13.23362235,1829.7,1829.6,8.0]
[1743759861660,14.29461509,1829.7,1829.6,8.0]
[1743759863093,19.33910303,1829.7,1829.6,8.0]
[1743759865502,22.62210303,1829.7,1829.6,8.0]
[1743759866298,22.73277452,1829.7,1829.6,8.0]
[1743759873005,19.20727452,1829.7,1829.6,8.0]
[1743759873187,19.75727452,1829.7,1829.6,8.0]
[1743759873389,17.2825691,1829.7,1829.6,8.0]
[1743759875329,13.62052943,1829.7,1829.6,8.0]
[1743759875526,18.71252943,1829.7,1829.6,8.0]
[1743759876640,13.24715943,1829.7,1829.6,8.0]
[1743759876829,13.24715943,1829.7,1829.6,13.46567]
[1743759876995,13.24715943,1829.7,1829.6,8.0]
[1743759877425,18.71252943,1829.7,1829.6,8.0]
[1743759878335,21.92777292,1829.7,1829.6,8.0]
[1743759879631,19.26252943,1829.7,1829.6,8.0]
[1743759883038,19.50502943,1829.7,1829.6,8.0]
[1743759883706,20.91928209,1829.7,1829.6,8.0]
[1743759885748,25.26302292,1829.7,1829.6,8.0]
[1743759889647,22.54552943,1829.7,1829.6,8.0]
[1743759889839,26.14062172,1829.7,1829.6,8.0]
[1743759893055,27.09576282,1829.7,1829.6,6.65462747]
[1743759893731,27.09576282,1829.7,1829.6,3.38134032]
[1743759894817,27.09576282,1829.7,1829.6,3.15654032]
[1743759896555,27.09576282,1829.7,1829.6,2.65654032]
[1743759896871,27.09576282,1829.7,1829.6,1.74554032]
[1743759897036,58.51744582,1829.7,1829.6,1.74554032]
[1743759897555,58.51744582,1829.7,1829.6,0.83454032]
[1743759898129,58.51744582,1829.7,1829.6,0.19064032]
[1743759899536,27.09576282,1829.7,1829.6,0.19064032]
[1743759899723,59.44423582,1829.7,1829.6,0.19064032]
[1743759900357,58.83111382,1829.7,1829.6,0.19064032]
[1743759900858,58.72044233,1829.7,1829.6,0.19064032]
[1743759901754,5.46705,1829.2,1829.0,1.0317]
[1743759901957,5.47499349,1829.1,1829.0,1.0317]
[1743759902257,14.11687443,1829.1,1828.8,0.969]
[1743759902460,2.47499349,1828.9,1828.8,0.969]
[1743759903154,10.94215349,1829.1,1828.8,6.43697]
[1743759903322,10.94215349,1829.1,1828.9,0.969]
[1743759903527,16.40948349,1829.1,1828.9,0.969]
[1743759903861,10.94215349,1829.1,1828.9,0.969]
[1743759904228,16.03715349,1829.1,1828.9,0.969]
[1743759904841,16.43890552,1829.1,1828.9,0.969]
[1743759906265,24.15190907,1829.1,1828.9,0.969]
[1743759906763,5.46746,1829.0,1828.9,0.969]
[1743759906959,6.01746,1829.0,1828.9,0.969]
[1743759907162,0.55,1829.0,1828.9,0.969]
[1743759908739,5.87674552,1829.1,1828.9,0.969]
[1743759908940,5.87674552,1829.1,1828.9,6.43676]
[1743759909334,0.40175203,1829.1,1829.0,6.40636]
[1743759909671,0.40175203,1829.1,1829.0,0.9389]
[1743759909672,3.0,1829.1,1829.0,0.9389]
[1743759909840,4.41457199,1829.1,1829.0,0.9389]
[1743759910035,4.96457199,1829.1,1829.0,0.9389]
[1743759910669,4.41457199,1829.1,1829.0,0.9389]
[1743759911658,5.47587943,1829.1,1829.0,0.9389]
[1743759913273,13.55358543,1829.1,1829.0,0.9389]
[1743759914558,5.46795,1828.9,1828.8,0.9673]
[1743759914767,7.94382943,1828.9,1828.8,0.9673]
[1743759916581,5.4682,1828.8,1828.6,0.9536]
[1743759916789,0.41956206,1829.1,1829.0,6.42106]
[1743759917152,5.04448794,1829.3,1829.2,6.41997]
[1743759917587,8.04448794,1829.3,1829.2,6.41997]
[1743759917890,16.39176096,1829.3,1829.2,0.9531]
[1743759919271,16.39176096,1829.3,1829.0,0.9587]
[1743759919272,8.4669,1829.2,1829.0,0.9587]
[1743759919588,3.0,1829.2,1829.0,0.9587]
[1743759919795,5.44931153,1829.3,1829.2,0.9587]
[1743759920160,10.91588153,1829.3,1829.2,0.9587]
[1743759921472,10.91588153,1829.3,1828.9,5.4677]
[1743759921473,8.467,1829.2,1828.9,1.016]
[1743759921669,10.94287943,1829.2,1828.9,1.016]
[1743759922397,3.0,1829.1,1829.0,1.016]
[1743759922568,8.46716,1829.1,1829.0,1.016]
[1743759923194,3.0,1829.1,1829.0,1.016]
[1743759923395,8.46716,1829.1,1829.0,1.016]
[1743759925063,13.93461,1829.1,1828.8,1.0129]
[1743759925275,2.47587943,1829.0,1828.8,1.0129]
[1743759925476,2.47587943,1829.0,1828.8,6.48095]
[1743759925675,2.47587943,1829.0,1828.8,1.0129]
[1743759926395,2.47587943,1829.0,1828.8,6.48075]
[1743759927095,3.0,1829.1,1828.9,0.9778]
[1743759927293,3.0,1829.1,1828.9,6.44552]
[1743759927694,3.0,1829.2,1829.0,6.42949]
[1743759927866,3.0,1829.2,1829.1,6.42936]
[1743759928272,3.0,1829.2,1829.1,0.89653085]
[1743759929295,3.0,1829.2,1829.1,6.36369085]
[1743759930395,3.0,1829.2,1829.1,0.89653085]
[1743759930699,3.0,1829.2,1829.1,6.36369085]
[1743759931195,3.0,1829.2,1829.1,0.89653085]
[1743759932194,3.0,1829.0,1828.6,6.49216]
[1743759932393,7.94347943,1829.0,1828.7,6.49167]
[1743759932793,7.94347943,1829.0,1828.7,11.95994]
[1743759932976,5.47587943,1829.0,1828.7,11.95994]
[1743759934599,5.47587943,1829.0,1828.7,6.49167]
[1743759934797,10.94343943,1829.0,1828.7,11.95992]
[1743759935101,10.94343943,1829.0,1828.7,6.49167]
[1743759935699,18.05215537,1829.0,1828.7,6.49167]
[1743759936000,12.58450537,1829.0,1828.7,6.49167]
[1743759936197,5.46796,1828.9,1828.7,1.0235]
[1743759937405,5.46793,1828.9,1828.7,1.0235]
[1743759937905,10.93586,1828.9,1828.7,1.0235]
[1743759938102,12.74113054,1828.9,1828.7,1.0235]
[1743759938972,12.74112054,1828.9,1828.7,1.0235]
[1743759939172,3.0,1828.7,1828.5,6.5002]
[1743759939483,3.0,1828.7,1828.5,11.96903]
[1743759939682,3.0,1828.7,1828.6,5.46866]
[1743759940071,3.0,1828.7,1828.5,6.50013]
[1743759941003,3.0,1828.7,1828.5,1.0313]
[1743759941004,4.09440394,1828.7,1828.5,1.0313]
[1743759941197,9.56279394,1828.7,1828.5,1.0313]
[1743759941571,4.09440394,1828.7,1828.5,1.0313]
[1743759942398,4.49666853,1828.7,1828.5,1.0313]
[1743759943006,9.96513853,1828.7,1828.5,1.0313]
[1743759943509,0.99651385,1828.6,1828.5,1.0313]
[1743759943878,9.96513853,1828.7,1828.5,1.0313]
[1743759944803,4.49666853,1828.7,1828.5,1.0313]
[1743759945414,4.49666853,1828.7,1828.5,6.50026]
[1743759946713,3.40226459,1828.7,1828.5,1.0313]
[1743759947821,8.87064459,1828.7,1828.5,1.0313]
[1743759948612,3.40226459,1828.7,1828.5,1.0313]
[1743759948809,3.40226459,1828.7,1828.5,6.50025]
[1743759950214,3.40226459,1828.7,1828.6,5.46866]
[1743759954590,3.40226459,1828.7,1828.5,11.96899]
[1743759954789,3.40226459,1828.7,1828.5,6.50012]
[1743759955019,3.99007899,1828.7,1828.4,10.9383]
[1743759956324,3.99007899,1828.7,1828.4,10.93828]
[1743759956819,3.99007899,1828.7,1828.5,5.46894]
[1743759956997,5.04448794,1828.9,1828.7,5.46817]
[1743759957196,3.0,1828.9,1828.7,5.46817]
[1743759958725,3.0,1828.9,1828.7,10.9364]
[1743759958915,3.0,1828.9,1828.8,5.46806]
[1743759959924,3.41025044,1828.9,1828.8,5.46806]
[1743759961213,3.41025044,1828.9,1828.7,5.46817]
[1743759962719,3.41025044,1828.9,1828.7,10.93643]
[1743759963125,3.41025044,1828.9,1828.8,5.46806]
[1743759963626,3.0,1829.1,1828.9,5.46762]
[1743759963814,2.47587943,1829.3,1829.1,5.46706]
[1743759964017,8.78566396,1829.3,1829.0,5.46736]
[1743759964327,3.0,1829.2,1829.0,5.46736]
[1743759964524,3.0,1829.2,1829.0,6.42026]
[1743759964726,3.0,1829.2,1829.0,11.88762]
[1743759965304,3.0,1829.2,1829.1,5.46716]
[1743759965910,3.41135779,1829.3,1829.1,5.46716]
[1743759967104,2.47587943,1829.2,1829.0,6.42026]
[1743759968234,2.47587943,1829.2,1829.0,11.88758]
[1743759968424,2.47587943,1829.2,1829.0,6.42022]
[1743759969239,2.47587943,1829.2,1829.0,11.88754]
[1743759969415,2.47587943,1829.2,1829.0,6.42022]
[1743759969806,2.47587943,1829.2,1829.0,11.88757]
[1743759971439,8.87803779,1829.3,1829.0,11.88757]
[1743759973143,8.87803779,1829.3,1829.0,6.42022]
[1743759973744,3.41135779,1829.3,1829.1,5.46714]
[1743759974544,3.41135779,1829.3,1829.0,6.42022]
[1743759974739,3.41135779,1829.3,1829.1,5.46716]
[1743759976048,8.87792779,1829.3,1829.0,6.42022]
[1743759976247,2.47587943,1829.2,1829.0,0.9529]
[1743759976437,2.47587943,1829.2,1829.0,5.46745]
[1743759976640,2.47587943,1829.2,1829.0,10.93482]
[1743759976819,3.41135779,1829.3,1829.1,6.50566]
[1743759977149,3.41135779,1829.3,1829.2,5.46687]
[1743759978212,3.41135779,1829.3,1829.1,6.50566]
[1743759978444,5.88723722,1829.3,1829.1,1.0385]
[1743759978648,11.35380722,1829.3,1829.0,5.46741]
[1743759979149,11.35380722,1829.3,1829.0,10.93478]
[1743759979349,5.88723722,1829.3,1829.0,10.93478]
[1743759979655,5.88723722,1829.3,1829.1,5.46713]
[1743759980149,5.88723722,1829.3,1829.0,10.93474]
[1743759980349,11.35386722,1829.3,1829.0,5.46737]
[1743759980514,13.54033374,1829.3,1829.0,5.46737]
[1743759981046,5.85207,1829.0,1828.5,6.5131]
[1743759981252,2.47587943,1828.9,1828.7,5.46825]
[1743759981446,5.47587943,1828.9,1828.6,10.93708]
[1743759981749,5.47587943,1828.9,1828.6,10.93705]
[1743759981949,5.47587943,1828.9,1828.6,5.46852]
[1743759982153,12.62323637,1828.9,1828.5,6.51312]
[1743759982330,2.47587943,1828.7,1828.6,5.46866]
[1743759983219,3.3844,1828.8,1828.6,5.46866]
[1743759983419,3.78943197,1828.8,1828.6,5.46866]
[1743759984053,5.47587943,1828.7,1828.5,5.46892]
[1743759984350,5.47587943,1828.7,1828.4,5.4692]
[1743759984351,12.41766957,1828.7,1828.4,5.4692]
[1743759985249,3.0,1828.5,1828.3,6.47842]
[1743759985548,5.47587943,1828.5,1828.3,5.46952]
[1743759985747,5.47587943,1828.5,1828.2,5.4698]
[1743759985748,10.94484943,1828.5,1828.2,5.4698]
[1743759986048,2.47587943,1828.3,1828.0,5.47026]
[1743759986220,8.32992943,1828.3,1828.0,5.47026]
[1743759986421,9.76485537,1828.3,1828.0,5.47026]
[1743759986829,2.47587943,1828.1,1827.9,6.43254]
[1743759987054,2.47587943,1828.1,1827.9,5.47074]
[1743759988465,2.47587943,1828.1,1827.9,10.94133]
[1743759988757,2.47587943,1828.1,1828.0,5.47045]
[1743759989328,5.47587943,1828.2,1828.0,5.47045]
[1743759990265,5.47587943,1828.2,1828.0,5.47031]
[1743759991037,2.22046298,1828.3,1828.1,5.47]
[1743759991038,0.40113704,1828.3,1828.1,5.47]
[1743759991345,10.94514943,1828.4,1828.1,5.47]
[1743759991544,5.46957,1828.3,1828.0,6.50631]
[1743759991745,13.18445917,1828.4,1828.0,11.97661]
[1743759992158,18.65400917,1828.4,1828.0,6.5062]
[1743759992356,13.18445917,1828.4,1828.0,11.97655]
[1743759992660,13.18445917,1828.4,1828.1,10.94018]
[1743759992866,7.71518917,1828.4,1828.1,5.46999]
[1743759993037,7.71518917,1828.4,1828.2,5.46976]
[1743759993237,7.71518917,1828.4,1828.1,5.46999]
[1743759993437,7.71518917,1828.4,1828.1,10.94001]
[1743759994450,7.71518917,1828.4,1828.1,5.46999]
[1743759994659,13.18448917,1828.4,1828.1,5.46999]
[1743759994859,7.71518917,1828.4,1828.1,10.94006]
[1743759995757,7.71518917,1828.4,1828.1,10.94003]
[1743759995957,7.71518917,1828.4,1828.2,5.46975]
[1743759996341,7.71518917,1828.4,1828.1,5.46999]
[1743759997072,6.62575892,1828.3,1828.0,5.47031]
[1743759997272,2.47587943,1828.2,1827.9,5.47064]
[1743759997468,2.47587943,1827.9,1827.6,5.47149]
[1743759997974,2.47587943,1827.9,1827.6,6.43609]
[1743759998275,2.47587943,1827.9,1827.7,5.47134]
[1743759998436,2.47587943,1827.9,1827.6,11.90763]
[1743759999769,2.47587943,1827.9,1827.7,5.47135]
[1743760001372,2.47587943,1827.9,1827.6,6.43609]
[1743760001583,7.94671943,1827.9,1827.6,6.43609]
[1743760001775,3.0,1827.8,1827.6,5.47149]
[1743760005173,3.40064277,1827.8,1827.6,5.47149]
[1743760006961,2.86067943,1827.7,1827.5,5.47186]
[1743760007571,2.47587943,1827.7,1827.5,5.47186]
[1743760010085,2.47587943,1827.7,1827.5,10.9437]
[1743760010482,3.78544277,1827.8,1827.6,10.94317]
[1743760010688,3.40064277,1827.8,1827.7,5.47135]
[1743760013282,5.42928794,1828.2,1827.9,5.47062]
[1743760013463,5.137,1828.1,1827.9,10.94124]
[1743760013667,3.0,1828.0,1827.9,10.94124]
[1743760014386,3.0,1828.0,1827.9,5.47062]
[1743760015367,3.0,1828.0,1827.8,10.94192]
[1743760019180,3.0,1828.0,1827.9,6.43545]
[1743760020708,8.04448794,1828.2,1828.1,5.47016]
[1743760021000,3.0,1828.2,1828.0,5.47032]
[1743760021579,3.0,1828.2,1827.9,11.9062]
[1743760021773,9.60622363,1828.2,1827.9,6.43545]
[1743760021973,2.86067943,1828.1,1827.9,5.47075]
[1743760023598,2.86067943,1828.1,1827.9,5.47063]
[1743760023599,2.47587943,1828.1,1827.9,5.47063]
[1743760023973,2.47587943,1828.1,1828.0,5.47045]
[1743760024875,2.47587943,1828.1,1827.9,5.47063]
[1743760025109,2.47587943,1828.1,1827.9,10.94124]
[1743760025622,2.47587943,1828.1,1827.9,5.47061]
[1743760026208,2.47587943,1828.1,1827.8,10.94197]
[1743760026411,3.0,1828.0,1827.8,5.47097]
[1743760027624,3.0,1828.0,1827.7,6.47601]
[1743760027625,3.0,1828.0,1827.7,10.94262]
[1743760027823,3.0,1828.0,1827.8,5.47102]
[1743760029002,3.0,1828.0,1827.7,10.94262]
[1743760029496,3.0,1828.0,1827.8,5.47102]
[1743760030023,3.0,1828.0,1827.8,10.94196]
[1743760030188,3.0,1828.0,1827.8,5.47094]
[1743760031015,4.13308594,1828.0,1827.7,10.94255]
[1743760031215,3.0,1827.8,1827.4,0.9764]
[1743760031421,3.0,1827.8,1827.6,5.47162]
[1743760033028,3.41944729,1827.8,1827.6,5.47162]
[1743760034229,5.10315696,1827.8,1827.6,5.47162]
[1743760034532,3.0,1827.6,1827.3,5.4724]
[1743760034729,2.47587943,1827.5,1827.3,5.4724]
[1743760035618,2.47587943,1827.5,1827.3,10.94482]
[1743760036116,3.0,1827.6,1827.3,5.52712173]
[1743760036305,5.47587943,1827.7,1827.4,11.93723]
[1743760036512,7.06652607,1827.7,1827.4,11.93723]
[1743760037114,7.06652607,1827.7,1827.4,6.46498]
[1743760037623,7.06652607,1827.7,1827.4,11.93713]
[1743760037826,7.06652607,1827.7,1827.5,5.4719]
[1743760038127,7.06652607,1827.7,1827.5,5.47183]
[1743760038323,2.47587943,1827.7,1827.5,5.47183]
[1743760038520,2.47587943,1827.7,1827.5,10.94364]
[1743760038830,2.47587943,1827.7,1827.5,5.47181]
[1743760039941,2.47587943,1827.7,1827.4,11.93727]
[1743760040150,2.47587943,1827.7,1827.5,5.47181]
[1743760043263,2.47587943,1827.7,1827.5,5.4718]
[1743760043568,2.47587943,1827.7,1827.6,5.47165]
[1743760043734,2.47587943,1827.7,1827.5,5.4718]
[1743760044069,5.47587943,1827.7,1827.5,5.4718]
[1743760044766,5.47587943,1827.7,1827.5,10.94366]
[1743760046955,5.47587943,1827.7,1827.5,5.4718]
[1743760047246,5.47587943,1827.7,1827.5,10.94365]
[1743760047442,5.47587943,1827.7,1827.5,5.4718]
[1743760048119,5.85847943,1827.7,1827.5,5.4718]
[1743760048764,5.85847943,1827.7,1827.5,10.94365]
[1743760049123,5.85847943,1827.7,1827.5,5.4718]
[1743760049750,5.47587943,1827.7,1827.5,10.94365]
[1743760050219,3.0,1827.7,1827.6,5.47165]
[1743760050970,3.3826,1827.7,1827.5,5.4718]
[1743760051170,2.47587943,1827.6,1827.5,5.4718]
[1743760051335,5.47587943,1827.7,1827.5,5.4718]
[1743760056574,5.47587943,1827.7,1827.6,5.47165]
[1743760058076,5.47587943,1827.7,1827.5,11.96894]
[1743760058803,5.47587943,1827.7,1827.6,5.47165]
[1743760059370,3.0,1827.7,1827.6,5.47165]
[1743760060896,3.0,1827.7,1827.5,6.4971]
[1743760060897,3.0,1827.7,1827.5,11.96893]
[1743760062102,3.0,1827.7,1827.6,5.47165]
[1743760063359,0.4177969,1828.3,1827.6,5.47165]
[1743760063360,0.26843333,1828.6,1828.5,5.46896]
[1743760063685,0.3826,1828.8,1828.7,5.46836]
[1743760063888,0.66844794,1828.8,1828.7,5.46836]
[1743760064186,1.08770641,1828.8,1828.7,5.46836]
[1743760064490,1.08770641,1828.8,1828.5,5.46886]
[1743760064876,4.08770641,1828.8,1828.5,5.46886]
[1743760065186,1.08770641,1828.8,1828.5,5.46886]
[1743760065382,4.08770641,1828.8,1828.5,10.93767]
[1743760065598,1.08770641,1828.8,1828.5,10.93767]
[1743760065783,1.08770641,1828.8,1828.6,5.46865]
[1743760065991,4.08770641,1828.8,1828.6,5.46852]
[1743760068303,3.66844794,1828.8,1828.6,5.46852]
[1743760069000,3.66844794,1828.8,1828.6,5.46851]
[1743760069227,3.3826,1828.8,1828.6,10.937]
[1743760069386,5.85847943,1828.8,1828.6,5.46849]
[1743760069769,5.85847943,1828.8,1828.6,10.937]
[1743760069994,5.85847943,1828.8,1828.6,5.46849]
[1743760072809,6.26854181,1828.8,1828.6,5.46849]
[1743760073982,3.41006238,1828.8,1828.6,10.93703]
[1743760074184,3.41006238,1828.8,1828.6,5.46849]
[1743760078622,3.41006238,1828.8,1828.6,10.93705]
[1743760078918,3.41006238,1828.8,1828.6,5.46849]
[1743760079213,0.41006238,1828.8,1828.7,5.46836]
[1743760079419,3.0,1828.9,1828.7,5.46836]
[1743760080322,0.55,1829.2,1829.1,5.46716]
[1743760080528,42.23307943,1829.3,1829.2,5.46687]
[1743760080738,7.90356737,1829.5,1829.3,5.46645]
[1743760080897,5.04448794,1829.5,1829.3,10.93287]
[1743760081091,5.04448794,1829.5,1829.2,6.48139]
[1743760081343,5.04448794,1829.5,1829.2,7.676165]
[1743760081825,3.0,1829.4,1829.2,7.676165]
[1743760082006,5.04448794,1829.5,1829.2,7.676165]
[1743760082201,5.04448794,1829.5,1829.2,6.48131]
[1743760082526,14.01446943,1829.7,1829.4,5.46615]
[1743760082527,0.3832,1829.7,1829.4,5.46615]
[1743760082705,0.79865691,1829.7,1829.4,5.46615]
[1743760082901,3.3832,1829.7,1829.4,5.46615]
[1743760083097,0.9332,1829.7,1829.4,5.46615]
[1743760083298,3.9332,1829.7,1829.4,5.46615]
[1743760083499,5.04448794,1829.8,1829.4,5.52093074]
[1743760083690,1e-05,1829.9,1829.7,5.4652]
[1743760084111,3.00001,1829.9,1829.6,5.46564]
[1743760084629,3.41270962,1829.9,1829.6,5.46564]
[1743760084828,3.41270962,1829.9,1829.6,10.9312]
[1743760085122,0.41270962,1829.9,1829.7,5.46523]
[1743760087127,0.41270962,1829.9,1829.7,10.93044]
[1743760087527,0.41270962,1829.9,1829.7,5.46521]
[1743760087708,1e-05,1829.9,1829.7,5.4652]
[1743760087891,1e-05,1829.9,1829.8,5.46507]
[1743760088096,1e-05,1829.9,1829.7,6.4923]
[1743760088627,1e-05,1829.9,1829.7,11.9575]
[1743760088825,1e-05,1829.9,1829.7,13.15325]
[1743760089007,1e-05,1829.9,1829.8,5.46507]
[1743760089901,0.12313187,1829.9,1829.8,5.46507]
[1743760090097,1e-05,1829.9,1829.8,5.46507]
[1743760090299,0.12369587,1829.9,1829.8,5.51971493]
[1743760090617,0.12369587,1829.9,1829.8,6.75153611]
[1743760091128,0.12369587,1829.9,1829.8,6.80618106]
[1743760094008,0.12369587,1829.9,1829.8,6.80617844]
[1743760094953,0.12369587,1829.9,1829.8,6.75153611]
[1743760095114,0.12369587,1829.9,1829.8,7.75213611]
[1743760097160,0.12369587,1829.9,1829.8,7.80677499]
[1743760097332,0.12369587,1829.9,1829.8,7.75213611]
[1743760097540,5.87e-06,1829.9,1829.8,10.28265238]
[1743760097863,3.0,1830.6,1830.4,10.9264]
[1743760098210,3.0,1830.6,1830.4,5.4632]
[1743760098645,50.37465,1830.7,1830.4,5.4632]
[1743760098954,50.37465,1830.7,1830.4,5.46316]
[1743760098955,3.0,1830.6,1830.4,5.46316]
[1743760099138,3.0,1830.7,1830.4,1.192572]
[1743760099436,5.44431473,1830.8,1830.6,5.46268]
[1743760100039,5.46283,1830.6,1830.2,5.46383]
[1743760100352,3.4272,1830.7,1830.4,5.46313]
[1743760100572,3.4272,1830.7,1830.4,10.92625]
[1743760100853,3.4272,1830.7,1830.4,5.46312]
[1743760101038,3.0,1830.7,1830.5,5.46298]
[1743760101238,3.0,1830.7,1830.4,10.92629]
[1743760101439,3.0,1830.7,1830.4,5.46312]
[1743760101640,8.46243,1830.7,1830.4,5.46312]
[1743760104369,2.47587943,1830.6,1830.4,5.46312]
[1743760105566,3.0,1830.7,1830.5,5.46295]
[1743760105971,3.0,1830.7,1830.5,10.92583]
[1743760106138,3.0,1830.7,1830.5,5.46288]
[1743760106551,3.0,1830.7,1830.5,10.92574]
[1743760106865,3.0,1830.7,1830.5,12.116554]
[1743760107866,3.0,1830.7,1830.5,6.653674]
[1743760109047,3.0,1830.7,1830.5,6.653654]
[1743760109666,3.0,1830.7,1830.5,12.116534]
[1743760110064,3.0,1830.7,1830.5,6.653654]
[1743760110536,3.0,1830.7,1830.6,5.46268]
[1743760110733,0.39982679,1830.8,1830.6,5.46268]
[1743760110949,8.6632,1830.9,1830.6,5.46268]
[1743760111563,11.13907943,1830.9,1830.6,5.46268]
[1743760111738,16.60087943,1830.9,1830.6,5.46268]
[1743760114970,3.1,1830.9,1830.8,5.46209]
[1743760117774,3.1,1830.9,1830.7,6.42866]
[1743760117991,3.1,1830.9,1830.7,11.89089]
[1743760118193,3.1,1830.9,1830.7,6.42863]
[1743760118497,3.1,1830.9,1830.8,5.46209]
[1743760120157,0.1,1830.9,1830.8,5.46209]
[1743760125078,3.1,1830.9,1830.8,5.46209]
[1743760127672,3.1,1830.9,1830.7,10.9245]
[1743760128068,3.1,1830.9,1830.7,10.92451]
[1743760129789,3.1,1830.9,1830.8,5.46209]
[1743760130289,3.1,1830.9,1830.7,10.92451]
[1743760130490,3.1,1830.9,1830.7,5.46223]
[1743760130690,3.1,1830.9,1830.7,10.92453]
[1743760131093,3.1,1830.9,1830.7,10.92452]